bitfinex/quotes_ETHUSD_20251028
["timestamp","ask_amount","ask_price","bid_price","bid_amount"]
[1761637863864,4.4001193,4119.5,4119.4,3.697014]
[1761637864064,4.54147906,4119.5,4119.4,3.697014]
[1761637865582,4.10527906,4119.5,4119.4,3.697014]
[1761637865814,5.31827906,4119.5,4119.4,4.169214]
[1761637866906,4.10527906,4119.5,4119.4,4.169214]
[1761637868602,4.10527906,4119.5,4119.4,3.697014]
[1761637868808,4.10527906,4119.5,4119.4,18.197014]
[1761637869283,4.10527906,4119.5,4119.4,19.227014]
[1761637869794,4.10527906,4119.5,4119.4,19.662114]
[1761637871813,4.10527906,4119.5,4119.4,4.727014]
[1761637874393,4.10527906,4119.5,4119.4,5.162114]
[1761637874584,4.10527906,4119.5,4119.4,4.727014]
[1761637874785,4.10527906,4119.5,4119.4,1.03000001]
[1761637875378,0.1226,4119.5,4119.4,1.03000001]
[1761637875609,2.55007906,4119.5,4119.4,1.46510001]
[1761637875919,0.001,4119.5,4119.4,16.50595141]
[1761637879111,2.42847906,4119.5,4119.4,15.53000001]
[1761637881206,3.98367906,4119.5,4119.4,15.53000001]
[1761637881916,3.98367906,4119.5,4119.4,1.03000001]
[1761637884327,4.45247906,4119.5,4119.4,1.03000001]
[1761637885543,3.98367906,4119.5,4119.4,1.03000001]
[1761637885749,2.55007906,4119.5,4119.4,1.03000001]
[1761637885912,2.55007906,4119.5,4119.4,15.96510001]
[1761637887800,2.55007906,4119.5,4119.4,15.53000001]
[1761637895545,2.55007906,4119.5,4119.4,1.03000001]
[1761637896047,2.55007906,4119.5,4119.4,15.53000001]
[1761637901358,4.57077906,4119.5,4119.4,1.03000001]
[1761637912570,4.44823799,4119.4,4119.3,1e-08]
[1761637914904,2.42777373,4119.0,4118.9,0.002]
[1761637915107,8.22697271,4119.0,4118.9,0.002]
[1761637915405,8.69247271,4119.0,4118.9,0.002]
[1761637918814,9.90647271,4119.0,4118.9,0.002]
[1761637920210,8.69247271,4119.0,4118.9,0.002]
[1761637920517,9.90647271,4119.0,4118.9,0.002]
[1761637921028,9.44097271,4119.0,4118.9,0.002]
[1761637921314,5.19697373,4119.0,4118.9,0.4671]
[1761637922217,5.19697373,4119.0,4118.9,0.002]
[1761637922421,9.44097271,4119.0,4118.9,0.002]
[1761637923808,9.90647271,4119.0,4118.9,0.002]
[1761637930528,9.44097271,4119.0,4118.9,0.002]
[1761637930856,8.22697271,4119.0,4118.9,0.002]
[1761637931159,4.10457373,4119.0,4118.9,0.4556]
[1761637931325,4.10457373,4119.0,4118.9,0.002]
[1761637931844,8.34857271,4119.0,4118.9,0.002]
[1761637935366,4.10457373,4119.0,4118.9,0.002]
[1761637935536,4.10457373,4119.0,4118.9,0.4556]
[1761637935935,4.10457373,4119.0,4118.9,0.002]
[1761637936662,8.81407271,4119.0,4118.9,0.002]
[1761637937272,8.34857271,4119.0,4118.9,0.002]
[1761637937773,4.10457373,4119.0,4118.9,0.4556]
[1761637938840,5.31857373,4119.0,4118.9,0.4556]
[1761637939076,4.10457373,4119.0,4118.9,0.002]
[1761637939280,0.1216,4119.0,4118.9,0.4556]
[1761637939578,2.54936051,4119.1,4118.9,0.4556]
[1761637939751,0.1216,4119.1,4118.9,0.4556]
[1761637939954,0.1216,4119.1,4119.0,14.5]
[1761637940160,2.54931479,4119.1,4119.0,16.44936]
[1761637942975,2.42753799,4119.4,4119.0,16.44936]
[1761637943183,2.54921811,4119.3,4119.1,0.4536]
[1761637943405,2.42765585,4119.2,4119.1,0.4536]
[1761637943549,2.42765585,4119.2,4119.1,0.6829]
[1761637944681,2.42765585,4119.2,4119.1,0.2293]
[1761637945000,2.42777373,4119.0,4118.9,0.002]
[1761637945370,2.54937373,4119.0,4118.9,0.002]
[1761637946785,4.10457373,4119.0,4118.9,0.002]
[1761637947888,4.10457373,4119.0,4118.9,0.4556]
[1761637948880,4.10457373,4119.0,4118.9,0.002]
[1761637949063,4.10457373,4119.0,4118.9,0.4556]
[1761637950255,2.54937373,4119.0,4118.9,0.4556]
[1761637951494,2.54937373,4119.0,4118.9,14.9556]
[1761637952687,2.54937373,4119.0,4118.9,14.502]
[1761637953198,2.54937373,4119.0,4118.9,14.9556]
[1761637954092,2.54937373,4119.0,4118.9,18.65261399]
[1761637954303,2.54937373,4119.0,4118.9,18.19901399]
[1761637955181,2.54937373,4119.0,4118.9,18.63861399]
[1761637957103,2.54937373,4119.0,4118.9,18.19901399]
[1761637957473,0.1216,4119.0,4118.9,20.50267539]
[1761637957672,2.42777373,4119.0,4118.9,20.50267539]
[1761637958006,2.42772878,4119.1,4118.9,20.50267539]
[1761637958206,0.1226,4119.2,4119.0,0.4396]
[1761637958207,2.55026029,4119.2,4119.0,0.4396]
[1761637958406,2.55026029,4119.2,4119.1,0.2315]
[1761637958779,0.1226,4119.2,4119.1,0.2315]
[1761637958984,0.1226,4119.2,4119.1,0.6711]
[1761637959183,2.55025585,4119.2,4119.1,0.6711]
[1761637959709,0.1226,4119.2,4119.1,2.74471754]
[1761637959908,0.1226,4119.2,4119.1,6.44173153]
[1761637961713,0.1226,4119.2,4119.1,18.86811399]
[1761637962922,0.1226,4119.2,4119.1,18.19701399]
[1761637963110,0.1226,4119.2,4119.1,18.86811399]
[1761637963807,2.55025585,4119.2,4119.1,18.42851399]
[1761637964012,2.55025585,4119.2,4119.1,18.86811399]
[1761637966210,0.1226,4119.2,4119.1,18.86811399]
[1761637966812,2.55025585,4119.2,4119.1,18.86811399]
[1761637969028,0.1226,4119.2,4119.1,18.86811399]
[1761637969209,2.55025585,4119.2,4119.1,18.19701399]
[1761637970800,0.1226,4119.2,4119.1,18.86811399]
[1761637971434,2.55025585,4119.2,4119.1,18.86811399]
[1761637972145,2.55025585,4119.2,4119.1,18.19701399]
[1761637972437,2.55025585,4119.2,4119.1,18.86811399]
[1761637972638,2.55025585,4119.2,4119.1,18.19701399]
[1761637974457,2.55025585,4119.2,4119.1,18.63661399]
[1761637974618,2.55025585,4119.2,4119.1,18.19701399]
[1761637975615,2.99275585,4119.2,4119.1,3.69701399]
[1761637977354,2.42777373,4119.0,4118.9,3.69901399]
[1761637977855,2.87027373,4119.0,4118.9,0.002]
[1761637978061,4.42547373,4119.0,4118.9,0.002]
[1761637981150,4.42553267,4118.9,4118.8,1e-08]
[1761637981460,4.61263267,4118.9,4118.8,1e-08]
[1761637983351,4.61263267,4118.9,4118.0,1e-08]
[1761637983352,1.960704,4118.7,4118.0,1e-08]
[1761637983552,2.42883513,4117.2,4115.9,0.6711]
[1761637983765,8.73654319,4117.2,4115.9,0.6711]
[1761637983968,5.19803513,4117.2,4116.2,14.5]
[1761637984164,5.19803513,4117.2,4116.7,0.4396]
[1761637984472,3.98403513,4117.2,4116.7,0.4396]
[1761637984628,9.50754319,4117.2,4116.2,14.5]
[1761637984826,9.50754319,4117.2,4117.1,1e-08]
[1761637985669,10.72154319,4117.2,4117.1,1e-08]
[1761637986631,9.50754319,4117.2,4117.1,1e-08]
[1761637986855,10.72154319,4117.2,4117.1,1e-08]
[1761637991165,10.84314319,4117.2,4117.1,1e-08]
[1761637991754,9.62914319,4117.2,4117.1,1e-08]
[1761637991951,5.31963513,4117.2,4117.1,1e-08]
[1761637993089,4.10563513,4117.2,4117.1,1e-08]
[1761637993687,5.31963513,4117.2,4117.1,1e-08]
[1761637995180,5.74803513,4117.2,4117.1,1e-08]
[1761637996468,5.31963513,4117.2,4117.1,1e-08]
[1761637997318,5.31963513,4117.2,4117.1,0.00200001]
[1761637997507,5.32063513,4117.2,4117.1,0.00200001]
[1761637999317,5.32063513,4117.2,4117.1,0.47220001]
[1761637999318,4.10663513,4117.2,4117.1,0.47220001]
[1761637999518,5.32063513,4117.2,4117.1,0.69440001]
[1761637999717,5.32063513,4117.2,4117.1,0.00200001]
[1761638001693,4.10663513,4117.2,4117.1,0.00200001]
[1761638001893,4.10663513,4117.2,4117.1,0.47220001]
[1761638002918,2.55143513,4117.2,4117.1,14.97220001]
[1761638003721,2.55143513,4117.2,4117.1,14.50200001]
[1761638003900,2.55143513,4117.2,4117.1,18.199014]
[1761638004315,4.10663513,4117.2,4117.1,3.699014]
[1761638004519,4.52993513,4117.2,4117.1,3.699014]
[1761638004722,4.10663513,4117.2,4117.1,3.699014]
[1761638005041,4.52993513,4117.2,4117.1,3.699014]
[1761638007423,2.42913012,4116.7,4116.6,0.002]
[1761638007628,2.55073012,4116.7,4116.6,0.002]
[1761638008346,4.10593012,4116.7,4116.6,0.002]
[1761638009944,8.77690223,4116.7,4116.6,0.002]
[1761638010644,8.35620223,4116.7,4116.6,0.002]
[1761638010847,4.10593012,4116.7,4116.6,0.002]
[1761638011748,8.77430223,4116.7,4116.6,0.002]
[1761638013747,8.35620223,4116.7,4116.6,0.002]
[1761638014045,8.77430223,4116.7,4116.6,0.002]
[1761638014826,8.35620223,4116.7,4116.6,0.002]
[1761638016356,5.31993012,4116.7,4116.6,0.002]
[1761638016958,4.10593012,4116.7,4116.6,0.002]
[1761638017159,5.31993012,4116.7,4116.6,0.002]
[1761638019865,9.98830223,4116.7,4116.6,0.002]
[1761638020173,5.31993012,4116.7,4116.6,0.002]
[1761638024069,5.73803012,4116.7,4116.6,0.002]
[1761638025765,9.98830223,4116.7,4116.6,0.002]
[1761638026676,9.98830223,4116.7,4116.2,0.002]
[1761638026677,2.42936617,4116.3,4116.2,0.002]
[1761638026839,8.23483828,4116.3,4116.2,0.002]
[1761638027170,8.77453828,4116.3,4116.2,0.002]
[1761638034700,8.77453828,4116.3,4115.3,0.002]
[1761638034701,2.4296613,4115.8,4115.3,0.002]
[1761638035000,8.23513341,4115.8,4115.3,0.002]
[1761638035200,8.82583341,4115.8,4115.3,0.002]
[1761638035504,4.5755613,4115.8,4115.3,0.002]
[1761638035711,4.1064613,4115.8,4115.3,0.002]
[1761638035879,5.1988613,4115.8,4115.3,0.002]
[1761638036075,3.9848613,4115.8,4115.7,0.4735]
[1761638036380,4.1064613,4115.8,4115.7,0.4735]
[1761638039515,4.1064613,4115.8,4115.7,0.002]
[1761638041592,4.5684613,4115.8,4115.7,0.002]
[1761638042696,4.1064613,4115.8,4115.7,0.002]
[1761638043017,3.9848613,4115.8,4115.7,0.4735]
[1761638047154,1.215,4116.4,4115.7,0.4735]
[1761638047311,2.42960287,4115.9,4115.7,0.4735]
[1761638047725,2.42987491,4117.2,4115.8,1e-08]
[1761638047923,1.215,4117.0,4115.9,0.47237721]
[1761638048213,2.42954324,4116.0,4115.9,0.4546]
[1761638048702,2.42948905,4116.1,4115.9,0.4546]
[1761638049103,2.42948905,4116.1,4116.0,14.5]
[1761638049339,2.42948905,4116.1,4116.0,14.9546]
[1761638050138,1.5552,4116.8,4116.0,14.9546]
[1761638050335,2.42942519,4116.2,4116.1,0.6811]
[1761638052949,2.55102519,4116.2,4116.1,0.6811]
[1761638053762,2.42960227,4115.9,4115.8,1e-08]
[1761638053929,2.42960227,4115.9,4115.8,0.45460001]
[1761638054131,2.42960227,4115.9,4115.8,1e-08]
[1761638054431,2.42960227,4115.9,4115.7,0.002]
[1761638054432,2.4296613,4115.8,4115.7,0.002]
[1761638054639,4.4199613,4115.8,4115.7,0.002]
[1761638055259,3.9848613,4115.8,4115.7,0.002]
[1761638055459,1.5552,4116.7,4115.7,0.002]
[1761638055759,6.67993341,4115.8,4115.7,0.002]
[1761638055967,8.23513341,4115.8,4115.7,0.002]
[1761638056961,8.67023341,4115.8,4115.7,0.002]
[1761638057165,3.9848613,4115.8,4115.7,0.002]
[1761638057675,2.56152953,4116.9,4115.7,0.002]
[1761638057860,2.56152953,4116.9,4115.7,0.4566]
[1761638057861,2.4296613,4115.8,4115.7,0.4566]
[1761638058174,1.5552,4116.5,4115.7,14.9566]
[1761638058568,2.42955018,4116.0,4115.8,0.4546]
[1761638058767,1.5552,4116.5,4115.8,0.4546]
[1761638059068,2.42955687,4116.0,4115.8,0.4546]
[1761638059451,2.42950077,4116.1,4115.8,0.4546]
[1761638059658,2.42950077,4116.1,4115.8,1.95046]
[1761638060067,2.42954324,4116.0,4115.9,0.4546]
[1761638062295,2.42954324,4116.0,4115.9,14.9546]
[1761638062786,2.42949077,4116.1,4115.9,14.9546]
[1761638062950,2.42949077,4116.1,4116.0,0.4546]
[1761638064384,2.55109077,4116.1,4116.0,0.4546]
[1761638066008,2.42960227,4115.9,4115.8,1e-08]
[1761638066308,2.42960227,4115.9,4115.8,0.45460001]
[1761638066622,4.41960227,4115.9,4115.8,1e-08]
[1761638068366,3.9848613,4115.8,4115.7,0.002]
[1761638068612,4.1064613,4115.8,4115.7,0.002]
[1761638068787,4.5412613,4115.8,4115.7,0.002]
[1761638070609,9.08798061,4115.7,4115.6,1e-08]
[1761638070766,9.52278061,4115.7,4115.6,1e-08]
[1761638072574,0.73050723,4116.1,4115.6,1e-08]
[1761638072780,0.001,4116.1,4115.6,1e-08]
[1761638073091,2.42972033,4115.7,4115.6,1e-08]
[1761638075300,2.42972033,4115.7,4115.6,0.43490001]
[1761638075605,2.42972033,4115.7,4115.6,1e-08]
[1761638077596,9.52278061,4115.7,4115.6,1e-08]
[1761638080305,3.98492033,4115.7,4115.6,1e-08]
[1761638080495,4.10652033,4115.7,4115.6,1e-08]
[1761638080895,5.32152033,4115.7,4115.6,1e-08]
[1761638083925,5.75632033,4115.7,4115.6,1e-08]
[1761638084501,5.32152033,4115.7,4115.6,1e-08]
[1761638086914,10.85938061,4115.7,4115.6,1e-08]
[1761638087732,10.86038061,4115.7,4115.6,1e-08]
[1761638088824,5.32252033,4115.7,4115.6,1e-08]
[1761638089846,5.75732033,4115.7,4115.6,1e-08]
[1761638090720,5.32252033,4115.7,4115.6,1e-08]
[1761638091826,5.75732033,4115.7,4115.6,1e-08]
[1761638097678,10.42558061,4115.7,4115.6,1e-08]
[1761638099955,10.86038061,4115.7,4115.6,1e-08]
[1761638100479,10.42558061,4115.7,4115.6,1e-08]
[1761638102957,10.86038061,4115.7,4115.6,1e-08]
[1761638103158,10.42558061,4115.7,4115.6,1e-08]
[1761638103673,5.32252033,4115.7,4115.6,1e-08]
[1761638106594,5.75732033,4115.7,4115.6,1e-08]
[1761638107554,5.32252033,4115.7,4115.6,1e-08]
[1761638112228,4.10752033,4115.7,4115.6,1e-08]
[1761638112427,5.32252033,4115.7,4115.6,0.44440001]
[1761638113000,5.32252033,4115.7,4115.6,1e-08]
[1761638114225,5.32252033,4115.7,4115.6,0.44440001]
[1761638116502,5.32252033,4115.7,4115.6,1e-08]
[1761638120238,4.10752033,4115.7,4115.6,1e-08]
[1761638120411,5.32252033,4115.7,4115.6,1e-08]
[1761638120831,5.63572033,4115.7,4115.6,1e-08]
[1761638121013,5.20092033,4115.7,4115.6,1e-08]
[1761638121416,3.98592033,4115.7,4115.6,1e-08]
[1761638121607,5.63572033,4115.7,4115.6,1e-08]
[1761638124833,5.20092033,4115.7,4115.6,1e-08]
[1761638125653,3.98592033,4115.7,4115.6,1e-08]
[1761638125844,5.20092033,4115.7,4115.6,0.44440001]
[1761638127952,3.64572033,4115.7,4115.6,0.44440001]
[1761638128160,2.43072033,4115.7,4115.6,0.44440001]
[1761638129059,0.001,4115.7,4115.6,0.44440001]
[1761638129934,0.001,4115.7,4115.6,0.73203381]
[1761638130154,0.001,4115.7,4115.6,0.44440001]
[1761638136756,0.001,4115.7,4115.6,4.69464529]
[1761638136961,0.001,4115.7,4115.6,4.71894308]
[1761638137266,0.001,4115.7,4115.6,4.69464529]
[1761638137775,0.001,4115.7,4115.6,0.44440001]
[1761638137939,0.001,4115.7,4115.6,0.74418892]
[1761638138955,0.001,4115.7,4115.6,3.19826608]
[1761638139161,0.001,4115.7,4115.6,3.17396829]
[1761638140648,0.001,4115.7,4115.6,3.57947229]
[1761638140911,0.001,4115.7,4115.6,3.70107229]
[1761638141446,0.001,4115.7,4115.6,3.7010723]
[1761638146358,0.001,4115.7,4115.6,3.72537009]
[1761638147929,0.001,4115.7,4115.6,3.70107229]
[1761638148283,0.001,4115.7,4115.6,3.79827775]
[1761638148984,0.001,4115.7,4115.6,5.35347775]
[1761638152987,0.001,4115.7,4115.6,5.35347776]
[1761638164028,0.001,4115.7,4115.6,4.90907776]
[1761638164193,0.001,4115.7,4115.6,2e-08]
[1761638164194,2.43072033,4115.7,4115.6,2e-08]
[1761638164394,0.4525,4115.7,4115.6,1e-08]
[1761638166142,0.001,4115.7,4115.6,1e-08]
[1761638166555,0.001,4115.7,4115.6,0.47410001]
[1761638166731,0.001,4115.7,4115.6,3.62193884]
[1761638168212,0.001,4115.7,4115.6,1.19215947]
[1761638168414,0.001,4115.7,4115.6,0.71805947]
[1761638168612,0.001,4115.7,4115.6,4.96830475]
[1761638168962,0.4378,4115.7,4115.6,1e-08]
[1761638169269,0.4378,4115.7,4115.6,14.50000001]
[1761638169426,0.001,4115.7,4115.6,14.50000001]
[1761638169642,0.001,4115.7,4115.6,16.92977938]
[1761638170827,0.001,4115.7,4115.6,16.92977939]
[1761638171018,0.001,4115.7,4115.6,19.72132469]
[1761638171237,0.00099999,4115.7,4115.6,26.49682868]
[1761638172115,0.00099999,4115.7,4115.6,26.06182868]
[1761638172722,0.001,4116.1,4116.0,4.39024724]
[1761638172918,0.001,4116.1,4116.0,13.59701976]
[1761638173154,0.001,4116.1,4116.0,17.88772433]
[1761638173452,0.001,4116.1,4116.0,32.38772433]
[1761638174367,0.001,4116.1,4116.0,32.50932433]
[1761638175766,0.001,4116.2,4116.1,4.39018822]
[1761638175990,0.001,4116.2,4116.1,7.43202836]
[1761638176275,0.001,4116.2,4116.1,7.40773352]
[1761638176434,0.001,4116.2,4116.1,21.90773352]
[1761638178466,0.001,4117.0,4116.5,2.42924814]
[1761638178639,0.001,4117.0,4116.5,8.2589859]
[1761638178844,0.001,4117.0,4116.5,9.90362444]
[1761638179045,0.001,4117.0,4116.5,24.40362444]
[1761638179751,0.001,4117.0,4116.5,28.28362444]
[1761638180649,0.001,4117.0,4116.8,4.38977512]
[1761638180850,0.001,4117.0,4116.9,8.6399614]
[1761638181030,0.001,4117.0,4116.9,10.29986465]
[1761638181441,0.001,4117.0,4116.9,24.79986465]
[1761638182145,0.001,4117.0,4116.9,23.24466465]
[1761638185606,0.001,4117.0,4116.9,27.12366465]
[1761638190068,0.001,4117.0,4116.9,27.55866465]
[1761638190971,0.001,4117.0,4116.9,35.48386465]
[1761638191175,0.001,4117.6,4117.0,6.71245712]
[1761638191382,0.001,4117.6,4117.0,9.50400242]
[1761638191786,0.001,4117.6,4117.0,29.09870478]
[1761638198916,0.4324,4117.6,4117.0,28.66370478]
[1761638200229,0.4324,4117.6,4117.0,35.49460478]
[1761638200737,0.001,4117.6,4117.1,6.71139812]
[1761638200911,0.001,4117.6,4117.1,17.45404342]
[1761638201097,0.001,4117.6,4117.1,16.99314342]
[1761638201305,0.001,4117.6,4117.1,32.30754342]
[1761638202614,0.44,4117.6,4117.1,31.61474342]
[1761638206331,0.439,4117.5,4117.1,31.61474342]
[1761638206642,0.34,4117.5,4117.4,2.83422115]
[1761638206846,0.001,4117.6,4117.5,2.83416216]
[1761638207248,0.001,4117.6,4117.5,17.33416216]
[1761638208744,0.244,4117.6,4117.5,17.33416216]
[1761638210348,0.001,4117.6,4117.5,17.33416216]
[1761638213161,0.244,4117.6,4117.5,17.33416216]
[1761638213364,0.244,4117.6,4117.5,19.69070746]
[1761638220795,0.244,4117.6,4117.5,16.92865816]
[1761638221141,0.244,4117.6,4117.5,14.5]
[1761638221798,0.244,4117.6,4117.5,16.92865816]
[1761638221953,0.001,4117.6,4117.5,22.02336052]
[1761638222459,0.342,4117.6,4117.5,22.02336052]
[1761638225979,0.342,4117.6,4117.5,16.92865816]
[1761638227460,0.001,4117.6,4117.5,20.15430746]
[1761638228070,0.001,4117.7,4117.6,4.38930318]
[1761638228283,0.001,4117.7,4117.6,4.87718917]
[1761638228468,0.001,4117.7,4117.6,4.85290318]
[1761638228670,0.001,4117.7,4117.6,19.35290318]
[1761638228852,0.001,4118.0,4117.8,0.405504]
[1761638229055,0.001,4118.0,4117.9,4.41341047]
[1761638229372,0.001,4118.0,4117.9,4.87701047]
[1761638229579,0.001,4118.0,4117.9,19.35272625]
[1761638233579,0.001,4118.0,4117.9,18.88912625]
[1761638233779,0.001,4118.0,4117.9,21.24567155]
[1761638234694,0.001,4118.0,4117.9,19.69047155]
[1761638234891,0.3383,4118.0,4117.9,16.92842225]
[1761638235265,0.001,4118.0,4117.9,16.92842225]
[1761638237314,0.3383,4118.0,4117.9,17.05002225]
[1761638239701,0.3383,4118.0,4117.9,14.6216]
[1761638241279,0.3383,4118.0,4117.9,14.5]
[1761638241590,2.76666328,4118.0,4117.9,14.5]
[1761638243917,4.32186328,4118.0,4117.9,14.5]
[1761638246977,3.98362225,4117.9,4117.8,0.002]
[1761638247235,4.46062225,4117.9,4117.8,0.002]
[1761638248018,2.49939918,4117.6,4117.5,0.002]
[1761638248411,2.75399918,4117.6,4117.5,0.002]
[1761638248782,3.48303839,4117.6,4117.5,0.002]
[1761638250113,2.75399918,4117.6,4117.5,0.002]
[1761638251390,2.87559918,4117.6,4117.5,0.002]
[1761638264454,0.1924,4117.6,4117.5,0.002]
[1761638264655,2.49939918,4117.6,4117.5,0.002]
[1761638267662,2.75399918,4117.6,4117.5,0.002]
[1761638267869,0.0708,4117.6,4117.5,0.002]
[1761638268748,0.0708,4117.6,4117.5,0.57567817]
[1761638268947,0.0708,4117.6,4117.5,0.69727817]
[1761638269382,0.0708,4117.6,4117.5,15.19727817]
[1761638270988,0.0708,4117.6,4117.5,17.62593633]
[1761638271287,0.0708,4117.6,4117.5,18.08603633]
[1761638278198,0.0708,4117.6,4117.5,18.49154033]
[1761638279266,0.0708,4117.6,4117.5,20.04674033]
[1761638287287,0.0708,4117.6,4117.5,19.18113633]
[1761638287593,0.0708,4117.6,4117.5,21.87352956]
[1761638287992,0.0708,4117.6,4117.5,22.27903356]
[1761638290418,0.0708,4117.6,4117.5,22.70913356]
[1761638295947,0.0708,4117.6,4117.5,22.27903356]
[1761638296856,0.0708,4117.6,4117.5,14.6236]
[1761638297060,0.3291,4117.6,4117.5,14.502]
[1761638297234,0.0708,4117.6,4117.5,14.502]
[1761638297854,0.0708,4117.6,4117.5,16.93065816]
[1761638298354,0.0708,4117.6,4117.5,14.502]
[1761638298971,0.3291,4117.6,4117.5,14.502]
[1761638299787,0.3291,4117.6,4117.5,16.93065816]
[1761638299975,0.0708,4117.6,4117.5,16.93065816]
[1761638302288,0.3291,4117.6,4117.5,14.502]
[1761638307078,0.3291,4117.6,4117.5,14.6236]
[1761638307690,2.75769918,4117.6,4117.5,14.6236]
[1761638307861,2.75769918,4117.6,4117.5,14.502]
[1761638309589,0.3291,4117.6,4117.5,14.502]
[1761638309792,2.75769918,4117.6,4117.5,14.502]
[1761638309995,0.3291,4117.6,4117.5,14.502]
[1761638310874,0.0708,4117.6,4117.5,14.502]
[1761638311673,0.0708,4117.6,4117.5,18.382]
[1761638312785,0.3291,4117.6,4117.5,18.382]
[1761638313905,2.75769918,4117.6,4117.5,18.382]
[1761638314790,2.68689918,4117.6,4117.5,3.88]
[1761638315904,2.68689918,4117.6,4117.5,18.382]
[1761638317484,2.68689918,4117.6,4117.5,14.502]
[1761638318173,0.2583,4117.6,4117.5,14.502]
[1761638319938,3.28010825,4117.8,4117.5,14.502]
[1761638320227,0.2583,4117.7,4117.5,14.502]
[1761638320834,2.68684675,4117.7,4117.5,14.502]
[1761638321326,3.28006268,4117.8,4117.5,14.502]
[1761638321528,0.2583,4117.6,4117.5,14.502]
[1761638322918,3.53836268,4117.8,4117.5,14.502]
[1761638323117,0.2583,4117.7,4117.5,14.502]
[1761638323418,0.2583,4117.7,4117.5,18.382]
[1761638325016,2.68686314,4117.7,4117.5,18.382]
[1761638325400,0.2583,4117.6,4117.5,18.382]
[1761638327015,2.68689918,4117.6,4117.5,18.382]
[1761638327326,2.68689918,4117.6,4117.5,14.502]
[1761638327528,3.41593839,4117.6,4117.5,14.502]
[1761638332539,3.41693839,4117.6,4117.5,14.502]
[1761638337214,3.53853839,4117.6,4117.5,14.502]
[1761638347488,2.80949918,4117.6,4117.5,14.502]
[1761638349191,2.55119918,4117.6,4117.5,14.502]
[1761638349397,2.55119918,4117.6,4117.5,14.9715]
[1761638349590,2.55119918,4117.6,4117.5,14.502]
[1761638349797,2.80739918,4117.6,4117.5,14.502]
[1761638349969,0.1226,4117.6,4117.5,14.502]
[1761638350173,2.55119918,4117.6,4117.5,14.502]
[1761638351456,2.80739918,4117.6,4117.5,14.502]
[1761638354288,2.55119918,4117.6,4117.5,14.9715]
[1761638355521,2.55119918,4117.6,4117.5,0.4715]
[1761638356001,2.55119918,4117.6,4117.5,14.9715]
[1761638356498,0.1226,4117.6,4117.5,14.9715]
[1761638356800,2.55119918,4117.6,4117.5,14.9715]
[1761638357765,2.55119918,4117.6,4117.5,14.502]
[1761638360011,0.001,4117.6,4117.5,14.9715]
[1761638361473,0.001,4117.6,4117.5,18.8515]
[1761638361819,2.42959918,4117.6,4117.5,18.8515]
[1761638362113,2.42959918,4117.6,4117.5,18.382]
[1761638363199,0.001,4117.6,4117.5,18.382]
[1761638363568,2.42959918,4117.6,4117.5,18.382]
[1761638364098,0.001,4117.6,4117.5,18.382]
[1761638364285,0.001,4117.6,4117.5,18.8515]
[1761638368999,0.001,4117.6,4117.5,18.382]
[1761638369705,2.42959918,4117.6,4117.5,18.382]
[1761638370071,0.001,4117.6,4117.5,18.382]
[1761638372299,2.42959918,4117.6,4117.5,18.382]
[1761638375135,2.42959918,4117.6,4117.5,18.382]
[1761638377937,0.001,4117.6,4117.5,18.382]
[1761638379416,0.001,4117.6,4117.5,18.8275]
[1761638382337,0.001,4117.6,4117.5,18.382]
[1761638382943,2.42959918,4117.6,4117.5,18.382]
[1761638383957,0.001,4117.6,4117.5,23.07436872]
[1761638384254,0.001,4117.6,4117.5,24.66694809]
[1761638384410,0.001,4117.6,4117.5,20.42007937]
[1761638385529,0.001,4117.6,4117.5,22.94592221]
[1761638385853,0.001,4117.6,4117.5,27.19279093]
[1761638387440,0.001,4117.6,4117.5,27.59829493]
[1761638392726,0.001,4117.6,4117.5,23.35142621]
[1761638392932,0.001,4117.6,4117.5,27.59829493]
[1761638393930,0.001,4117.6,4117.5,27.71989493]
[1761638395329,0.001,4117.6,4117.5,20.19336405]
[1761638395763,0.001,4117.6,4117.5,20.63886405]
[1761638395959,0.001,4117.6,4117.5,18.60078468]
[1761638396164,0.001,4117.6,4117.5,4.10078468]
[1761638396593,0.2457,4117.6,4117.5,4.10078468]
[1761638397097,0.2457,4117.6,4117.5,4.0036]
[1761638397483,0.2457,4117.6,4117.5,18.5036]
[1761638397484,2.67429918,4117.6,4117.5,18.5036]
[1761638397670,2.67429918,4117.6,4117.5,18.382]
[1761638398395,2.67429918,4117.6,4117.5,14.502]
[1761638400093,2.42959918,4117.6,4117.5,14.502]
[1761638400296,0.001,4117.6,4117.5,14.502]
[1761638400598,2.42959918,4117.6,4117.5,14.502]
[1761638400891,0.001,4117.6,4117.5,14.502]
[1761638401290,2.42959918,4117.6,4117.5,14.502]
[1761638401492,0.001,4117.6,4117.5,14.502]
[1761638401995,0.001,4117.6,4117.5,14.9475]
[1761638402295,0.001,4117.6,4117.5,23.03686137]
[1761638402468,0.001,4117.6,4117.5,27.44396537]
[1761638403393,0.001,4117.6,4117.5,20.24133449]
[1761638403595,0.001,4117.6,4117.5,27.32236537]
[1761638405901,0.001,4117.6,4117.5,28.87756537]
[1761638407592,0.001,4117.6,4117.5,28.43206537]
[1761638407779,0.001,4117.6,4117.5,24.64949665]
[1761638408096,0.001,4117.6,4117.5,27.34116537]
[1761638409082,0.001,4117.6,4117.5,24.91250721]
[1761638409599,0.001,4117.6,4117.5,27.34116537]
[1761638412324,0.001,4117.6,4117.5,27.4383288]
[1761638413432,0.001,4117.6,4117.5,27.5599288]
[1761638414228,0.001,4118.0,4117.9,2.83392625]
[1761638414418,0.001,4118.0,4117.9,8.2162876]
[1761638414619,0.001,4118.0,4117.9,8.3378876]
[1761638414821,0.001,4118.0,4117.9,22.8378876]
[1761638415009,0.001,4118.0,4117.9,22.93505103]
[1761638417427,0.001,4118.0,4117.9,22.52954703]